Workbook

Sheet Вт 1 нед
A1: Рацион: ШК 11-18 лет | B1: 12 лет и старше | E1: День: | F1: вторник | I1: Школа | K1: СОШ с. Нижнеулу-Елга
D2: Неделя: | F2: 1 | I2: Возраст: | K2: 12 лет и старше
A3: № рец. | B3: Прием пищи, наименование блюда | D3: Масса порции | E3: Пищевые вещества (г) | H3: Энерге- тическая ценность (ккал) | I3: Витамины (мг) | M3: Минеральные вещества (мг)
E4: Б | F4: Ж | G4: У | I4: B1 | J4: C | K4: A | L4: E | M4: Ca | N4: P | O4: Mg | P4: Fe
A5: 1 | B5: 2 | D5: 3 | E5: 4 | F5: 5 | G5: 6 | H5: 7 | I5: 8 | J5: 9 | K5: 10 | L5: 11 | M5: 12 | N5: 13 | O5: 14 | P5: 15
A6: Завтрак
A7: 38\83 | B7: Пельмени отварные | D7: 200 | E7: 20 | F7: 20 | G7: 38.2 | H7: 399 | M7: 36 | N7: 85 | O7: 1
A8: 285 | B8: Чай с лимоном и сахаром | D8: 200 | E8: 0,06 | F8: 0,01 | G8: 10,19 | H8: 42,28 | J8: 2,8 | K8: 0,14 | L8: 0,01 | M8: 3,1 | N8: 1,54 | O8: 0,84 | P8: 0,07
A9: 86.12 | B9: Сок фруктовый | D9: 200 | E9: 1 | F9: 0.2 | G9: 20.2 | H9: 92 | I9: 0.02 | J9: 4 | K9: 6,25 | L9: 0.2 | M9: 14 | N9: 14 | O9: 8 | P9: 2.8
A10: 1,1 | B10: Хлеб пшеничный обогащенный витаминами для детского питания | D10: 30 | E10: 2,4 | F10: 0,3 | G10: 16,5 | H10: 78 | I10: 0,1 | L10: 0,45 | M10: 6 | N10: 19,5 | O10: 4,2 | P10: 0,75
A11: Итого за Завтрак суммарная масса порции: 630 | E11: =E7+E8+E9+E10 -> 23.46 | F11: =F7+F8+F9+F10 -> 20.51 | G11: =G7+G8+G9+G10 -> 85.09 | H11: =H7+H8+H9+H10 -> 611.28 | I11: =I7+I8+I9+I10 -> 0.12 | J11: =J7+J8+J9+J10 -> 6.8 | K11: =K7+K8+K9+K10 -> 6.39 | L11: =L7+L8+L9+L10 -> 0.66 | M11: =M7+M8+M9+M10 -> 59.1 | N11: =N7+N8+N9+N10 -> 120.04 | O11: =O7+O8+O9+O10 -> 14.04 | P11: =P7+P8+P9+P10 -> 3.62
A12: Обед
A13: 58 | B13: Суп картофельный | D13: 250 | E13: 2.4 | F13: 2.5 | G13: 18.1 | H13: 107 | I13: 0.1 | J13: 9.64 | K13: 3 | M13: 15.1 | N13: 78.69 | O13: 27.13 | P13: 1.01
A14: 446.00 | B14: Котлеты куриные с томатным соусом | D14: 50/50 | E14: 9.60 | F14: 12.78 | G14: 8.63 | H14: 179.93 | I14: 0.08 | J14: 1.7 | K14: 48.17 | L14: 2.20 | M14: 29.01 | N14: 108.12 | O14: 16.0 | P14: 1.62
A15: 611.02 | B15: Рис припущенный | D15: 180 | E15: 4.55 | F15: 7.88 | G15: 46.75 | H15: 250 | I15: 0.05 | K15: 45 | L15: 0.35 | M15: 14.06 | N15: 97.5 | O15: 31.9 | P15: 0.7
A16: 293 | B16: Компот из смеси сухофруктов | D16: 200 | E16: 0.44 | F16: 0.09 | G16: 32.92 | H16: 128.6 | M16: 0.6 | P16: 0.06
A17: 420.02 | B17: Хлеб пшеничный обогащенный витаминами для детского питания | D17: 40 | E17: 3.2 | F17: 0.4 | G17: 22 | H17: 104 | I17: 0.14 | L17: 0.6 | M17: 8 | N17: 26 | O17: 5.6 | P17: 1
A18: 1,2 | B18: Хлеб ржано-пшеничный для детского питания | D18: 30 | E18: 2,4 | F18: 0,3 | G18: 13,8 | H18: 66 | I18: 0,12 | L18: 0,51 | M18: 8,7 | N18: 39 | O18: 12,6 | P18: 0,9
A19: Итого за Обед суммарная масса порции: 800 | E19: =E13+E14+E15+E16+E17+E18 -> 22.59 | F19: =F13+F14+F15+F16+F17+F18 -> 23.95 | G19: =G13+G14+G15+G16+G17+G18 -> 142.20 | H19: =H13+H14+H15+H16+H17+H18 -> 835.53 | I19: =I13+I14+I15+I16+I17+I18 -> 0.49 | J19: =J13+J14+J15+J16+J17+J18 -> 11.34 | K19: =K13+K14+K15+K16+K17+K18 -> 96.17 | L19: =L13+L14+L15+L16+L17+L18 -> 3.66 | M19: =M13+M14+M15+M16+M17+M18 -> 75.47 | N19: =N13+N14+N15+N16+N17+N18 -> 349.31 | O19: =O13+O14+O15+O16+O17+O18 -> 93.26 | P19: =P13+P14+P15+P16+P17+P18 -> 5.29
A20: Итого за день | E20: =E11+E19 -> 46.05 | F20: =F11+F19 -> 44.46 | G20: =G11+G19 -> 227.29 | H20: =H11+H19 -> 1446.81 | I20: =I11+I19 -> 0.61 | J20: =J11+J19 -> 18.14 | K20: =K11+K19 -> 102.56 | L20: =L11+L19 -> 4.32 | M20: =M11+M19 -> 134.57 | N20: =N11+N19 -> 469.35 | O20: =O11+O19 -> 107.3 | P20: =P11+P19 -> 8.91
